bitfinex-derivatives/quotes_ETHF0:USTF0_20250528
["timestamp","ask_amount","ask_price","bid_price","bid_amount"]
[1748457311757,3.2078,2644.1,2644.0,0.75623]
[1748457311954,4.5354,2644.1,2644.0,0.75623]
[1748457314465,1.3276,2644.1,2644.0,0.75623]
[1748457314954,0.00566947,2644.2,2644.1,0.7562]
[1748457315158,0.00566947,2644.2,2644.1,1.3664]
[1748457318668,0.00566947,2644.2,2644.1,6.3664]
[1748457319066,0.00566947,2644.2,2644.1,18.7854]
[1748457319268,0.00566947,2644.2,2644.1,0.7562]
[1748457319568,1.24596947,2644.2,2644.1,18.1762]
[1748457320271,0.00566947,2644.2,2644.1,18.1762]
[1748457320472,0.00566947,2644.2,2644.1,18.25083908]
[1748457321063,0.6457,2644.9,2644.8,0.75601]
[1748457321461,1.40168,2644.9,2644.8,0.75601]
[1748457321969,2.63088,2644.9,2644.8,0.75601]
[1748457324464,1.8749,2644.9,2644.8,0.75601]
[1748457324664,1.2292,2644.9,2644.8,0.75601]
[1748457325670,1.98518,2644.9,2644.8,0.75601]
[1748457329377,3.96376,2645.0,2644.9,0.75598]
[1748457329569,3.2078,2645.0,2644.9,0.75598]
[1748457329871,2.11019947,2645.1,2645.0,0.75595]
[1748457330071,0.76159947,2645.1,2645.0,0.75595]
[1748457331168,0.00566947,2645.1,2645.0,0.75595]
[1748457332072,0.00566947,2645.1,2645.0,2.07455]
[1748457333367,0.00566947,2645.1,2644.9,4.4299]
[1748457333368,0.00566947,2645.1,2644.9,0.6689]
[1748457333569,1.89006,2644.8,2644.4,0.6129]
[1748457333775,1.89019,2644.6,2644.2,0.623]
[1748457333976,1.89019,2644.6,2644.1,3.83563908]
[1748457333977,0.75618,2644.2,2644.1,4.59183908]
[1748457334374,0.75617,2644.3,2644.2,0.75615]
[1748457334571,0.75614,2644.4,2644.3,0.75612]
[1748457335682,0.75623,2644.1,2644.0,0.75622]
[1748457335867,0.75617,2644.3,2644.2,0.75614]
[1748457336071,0.75612,2644.4,2644.3,0.75613]
[1748457338577,0.75612,2644.4,2644.2,0.75616]
[1748457338875,0.75615,2644.3,2644.2,0.75616]
[1748457339578,0.7562,2644.2,2644.1,0.75618]
[1748457339975,0.75616,2644.3,2644.2,0.75614]
[1748457340170,0.75614,2644.4,2644.3,0.75612]
[1748457340576,3.2078,2644.5,2644.4,0.75612]
[1748457341178,3.96389,2644.5,2644.4,0.75612]
[1748457343178,3.96389,2644.5,2644.1,3.1278]
[1748457343179,0.75616,2644.4,2644.3,0.75613]
[1748457343382,2.08666,2644.4,2644.3,0.75613]
[1748457344183,1.3305,2644.4,2644.3,0.75613]
[1748457345679,2.08662,2644.4,2644.3,0.75613]
[1748457346391,1.3305,2644.4,2644.3,0.75613]
[1748457346890,1.2884,2644.7,2644.6,0.75606]
[1748457347089,2.10788,2644.9,2644.8,0.756]
[1748457348388,2.10788,2644.9,2644.6,1.287]
[1748457348389,0.75603,2644.8,2644.7,0.75601]
[1748457351300,3.96383,2644.8,2644.7,0.75601]
[1748457359406,3.2078,2644.8,2644.7,0.75601]
[1748457359604,1.2996,2645.0,2644.9,0.75598]
[1748457360206,3.96940947,2645.1,2645.0,0.75595]
[1748457360427,3.21346947,2645.1,2645.0,0.75595]
[1748457360711,3.96938947,2645.1,2645.0,0.75595]
[1748457361801,3.96938947,2645.1,2645.0,18.13695]
[1748457362608,0.75595,2645.0,2644.9,0.75595]
[1748457362799,2.08765,2645.0,2644.9,0.75595]
[1748457363100,3.21346947,2645.1,2645.0,0.75595]
[1748457364001,0.00566947,2645.1,2645.0,3.96375]
[1748457364404,9.47e-06,2645.1,2645.0,8.96375]
[1748457364605,9.47e-06,2645.1,2645.0,10.82625]
[1748457366210,9.47e-06,2645.1,2645.0,10.90088908]
[1748457368506,9.47e-06,2645.1,2645.0,5.90088908]
[1748457368708,9.47e-06,2645.1,2645.0,6.27898908]
[1748457369416,9.47e-06,2645.1,2645.0,11.27898908]
[1748457369912,3.2078,2646.0,2645.9,0.75569]
[1748457370113,3.2078,2646.0,2645.9,18.12369]
[1748457370307,4.5196,2646.0,2645.9,18.12369]
[1748457370906,4.5196,2646.0,2645.9,19.40939]
[1748457372412,0.75572,2645.8,2645.7,0.00566947]
[1748457372808,0.75572,2645.8,2645.0,0.07463908]
[1748457372809,0.75592,2645.1,2645.0,0.07463908]
[1748457373519,0.75592,2645.1,2645.0,0.83058908]
[1748457373818,0.75592,2645.1,2645.0,0.07463908]
[1748457379817,0.75592,2645.1,2645.0,0.83058908]
[1748457380016,4.467,2645.2,2645.1,0.75592]
[1748457380221,3.2078,2645.7,2645.5,0.75578]
[1748457380415,0.6376,2645.6,2645.5,0.75578]
[1748457381010,3.8697,2645.7,2645.6,0.75578]
[1748457381213,0.6376,2646.0,2645.6,1.88945]
[1748457381417,3.2078,2646.1,2646.0,0.75566]
[1748457381723,3.2078,2646.1,2645.7,1.9033]
[1748457382021,0.75572,2645.9,2645.8,0.7557]
[1748457382220,0.75568,2646.0,2645.9,0.75566]
[1748457382621,0.75568,2646.0,2645.7,1.9033]
[1748457382622,3.2078,2646.1,2646.0,0.75566]
[1748457382823,3.96343,2646.1,2646.0,0.75566]
[1748457383419,3.2078,2646.1,2646.0,0.75566]
[1748457383916,0.7558,2645.5,2645.4,3.728]
[1748457384121,0.7558,2645.6,2645.5,0.75578]
[1748457384421,0.75576,2645.7,2645.6,0.75576]
[1748457384617,0.75576,2645.7,2645.6,18.22776]
[1748457385123,0.75574,2645.8,2645.7,0.75572]
[1748457385623,3.2078,2645.9,2645.8,0.75572]
[1748457385814,3.9635,2645.9,2645.8,0.75572]
[1748457390229,0.75575,2645.8,2645.7,0.75572]
[1748457393323,2.04485,2645.8,2645.7,0.75572]
[1748457393523,1.2891,2645.8,2645.7,0.75572]
[1748457393928,2.04482,2645.8,2645.7,0.75572]
[1748457394123,0.7452,2646.0,2645.9,0.75569]
[1748457394323,2.0007,2646.0,2645.9,0.75569]
[1748457394917,2.75636,2646.0,2645.9,0.75569]
[1748457397229,2.0007,2646.0,2645.9,0.75569]
[1748457397429,2.0007,2646.0,2645.9,1.98549]
[1748457397832,0.1131,2646.0,2645.9,1.98549]
[1748457398131,0.1131,2646.0,2645.9,2.61959]
[1748457398831,0.86876,2646.0,2645.9,23.78859]
[1748457399025,0.1131,2646.0,2645.9,23.78859]
[1748457401931,0.1131,2646.0,2645.9,28.78859]
[1748457402639,0.1131,2646.0,2645.9,23.78059]
[1748457403934,0.1131,2646.0,2645.9,2.61959]
[1748457404133,0.1131,2646.0,2645.9,23.83159]
[1748457407632,1.4078,2646.0,2645.9,23.83159]
[1748457407839,0.1131,2646.0,2645.9,23.83159]
[1748457410846,0.00566947,2646.2,2646.1,0.75563]
[1748457411441,0.00566947,2646.2,2646.1,1.99923]
[1748457414246,0.00566947,2646.2,2646.1,23.18123]
[1748457415338,0.00566947,2646.2,2646.1,23.17823]
[1748457415544,0.75566,2646.0,2645.9,0.07463908]
[1748457415745,1.9791,2646.1,2646.0,0.75566]
[1748457415945,2.6433,2646.1,2646.0,0.75566]
[1748457416644,3.39895,2646.1,2646.0,0.75566]
[1748457417447,2.6433,2646.1,2646.0,0.75566]
[1748457417650,0.00566947,2646.2,2646.1,0.75563]
[1748457417848,0.00566947,2646.2,2646.1,2.71623]
[1748457418245,0.00566947,2646.2,2646.1,5.92403]
[1748457421145,9.47e-06,2646.2,2646.1,10.92403]
[1748457421345,9.47e-06,2646.2,2646.1,6.30213]
[1748457421643,9.47e-06,2646.2,2646.1,3.09433]
[1748457421941,1.33460947,2646.2,2646.1,23.01263]
[1748457422144,2.64700947,2646.2,2646.1,22.63453]
[1748457423746,2.64700947,2646.2,2646.1,4.52663]
[1748457423951,2.64700947,2646.2,2646.1,21.97263]
[1748457424852,9.47e-06,2646.2,2646.1,21.97263]
[1748457425148,9.47e-06,2646.2,2646.1,23.31323]
[1748457425550,9.47e-06,2646.2,2646.1,0.75563]
[1748457425749,0.75560947,2646.2,2646.1,18.20463]
[1748457426252,0.75560947,2646.2,2646.1,18.27926908]
[1748457426454,9.47e-06,2646.2,2646.1,18.27926908]
[1748457426950,1.27340947,2646.2,2646.1,18.27926908]
[1748457427544,7.02900947,2646.2,2646.1,0.07463908]
[1748457427849,2.02900947,2646.2,2646.1,0.83026908]
[1748457428650,1.27340947,2646.2,2646.1,0.83026908]
[1748457430756,2.02900947,2646.2,2646.1,18.27826908]
[1748457430951,2.02900947,2646.2,2646.1,17.52163908]
[1748457431155,2.02900947,2646.2,2646.1,0.83026908]
[1748457431352,1.27340947,2646.2,2646.1,0.83026908]
[1748457431551,2.02900947,2646.2,2646.1,0.83026908]
[1748457433548,1.27340947,2646.2,2646.1,0.83026908]
[1748457435259,9.47e-06,2646.2,2646.1,0.83026908]
[1748457435557,9.47e-06,2646.2,2646.1,1.44946908]
[1748457438763,0.75560947,2646.2,2646.1,22.04426908]
[1748457438952,0.75560947,2646.2,2646.1,0.07463908]
[1748457441763,0.75560947,2646.2,2646.1,0.83026908]
[1748457442164,0.75560947,2646.2,2646.1,0.07463908]
[1748457444963,0.75560947,2646.2,2646.1,0.83026908]
[1748457445261,9.47e-06,2646.2,2646.1,0.83026908]
[1748457445667,1.25420947,2646.2,2646.1,0.83026908]
[1748457446461,1.25420947,2646.2,2646.1,4.61026908]
[1748457446462,9.47e-06,2646.2,2646.1,4.61026908]
[1748457447268,9.47e-06,2646.2,2646.1,9.61026908]
[1748457448362,9.47e-06,2646.2,2646.1,4.61026908]
[1748457450166,9.47e-06,2646.2,2646.1,9.61026908]
[1748457450472,9.47e-06,2646.2,2646.1,4.98836908]
[1748457450769,9.47e-06,2646.2,2646.1,27.40136908]
[1748457451162,1.88837,2647.2,2646.1,27.40136908]
[1748457451163,3.2078,2647.2,2646.2,3.77803]
[1748457451366,3.2078,2647.5,2646.9,5.0963]
[1748457451671,0.75535,2647.1,2647.0,23.93447]
[1748457451867,0.75534,2647.2,2647.1,0.75533]
[1748457452265,0.75531,2647.3,2647.2,0.75531]
[1748457452472,2.00001,2647.3,2647.2,0.75531]
[1748457452870,2.00001,2647.3,2647.2,2.02771]
[1748457454076,0.00566947,2647.4,2647.2,1.2724]
[1748457454280,0.00566947,2647.4,2647.3,0.75529]
[1748457454584,1.2447,2648.3,2647.6,1.88801]
[1748457454782,1.2447,2648.1,2648.0,0.75509]
[1748457454982,0.75509,2648.0,2647.9,17.442]
[1748457455375,6.88774,2648.0,2647.3,4.4836]
[1748457455582,0.75526,2647.4,2647.3,0.07463908]
[1748457455781,0.75526,2647.4,2647.3,0.82992908]
[1748457456286,0.75526,2647.4,2647.3,0.82991908]
[1748457456479,1.2272,2647.4,2647.3,0.82991908]
[1748457456679,1.98246,2647.4,2647.3,0.82991908]
[1748457456884,1.2272,2647.4,2647.3,0.82991908]
[1748457457780,0.6417,2647.5,2647.4,0.75526]
[1748457458082,0.75519,2647.7,2647.6,0.75521]
[1748457458681,0.75523,2647.6,2647.5,0.75522]
[1748457459085,1.8812,2647.8,2647.4,1.9349]
[1748457459579,0.75522,2647.6,2647.5,0.75522]
[1748457460085,0.7552,2647.7,2647.6,0.7552]
[1748457460280,2.0636,2647.7,2647.6,0.7552]
[1748457460682,1.3084,2647.7,2647.4,1.9349]
[1748457460982,0.75523,2647.5,2647.4,1.41433]
[1748457461584,0.75522,2647.6,2647.5,0.75521]
[1748457464486,0.75523,2647.5,2647.4,20.16114]
[1748457467292,0.75523,2647.5,2647.4,1.9819]
[1748457467591,0.75526,2647.4,2647.3,0.82990908]
[1748457467792,4.61216,2647.4,2647.3,0.07463908]
[1748457469990,0.75535,2647.1,2647.0,0.75536]
[1748457470180,0.75538,2647.0,2646.9,3.77466947]
[1748457470385,2.68228,2647.0,2646.9,3.77466947]
[1748457471290,2.68228,2647.0,2646.9,4.53007947]
[1748457472697,2.68228,2647.0,2646.9,3.77466947]
[1748457473801,2.68228,2647.0,2646.9,4.53007947]
[1748457474697,1.9269,2647.0,2646.9,4.53007947]
[1748457475092,2.68228,2647.0,2646.9,4.53007947]
[1748457475593,1.9269,2647.0,2646.9,4.53007947]
[1748457476301,1.252,2647.0,2646.9,4.53007947]
[1748457479898,1.252,2647.0,2646.9,5.81347947]
[1748457480299,2.73052,2647.2,2647.1,0.75535]
[1748457480698,1.9752,2647.2,2647.1,0.75535]
[1748457481201,1.9752,2647.2,2647.0,2.05395]
[1748457481402,0.75535,2647.1,2647.0,1.37815]
[1748457481596,1.3221,2647.1,2647.0,1.37815]
[1748457482201,1.3221,2647.1,2647.0,2.66155]
[1748457482403,5.09599,2647.4,2647.0,2.66155]
[1748457482404,3.2078,2647.4,2647.3,0.75529]
[1748457482606,2.66123,2647.6,2647.5,0.75523]
[1748457482808,1.906,2647.6,2647.5,0.75523]
[1748457482995,4.60198,2647.7,2647.6,0.75521]
[1748457483500,3.96298,2647.7,2647.6,0.75521]
[1748457484007,3.2078,2647.7,2647.6,0.75521]
[1748457484201,3.96298,2647.7,2647.6,0.75521]
[1748457484504,3.2078,2647.7,2647.6,0.75521]
[1748457484907,1.98687,2647.8,2647.7,0.75518]
[1748457485608,1.98685,2647.8,2647.7,0.75518]
[1748457485804,1.2317,2647.8,2647.7,0.75518]
[1748457486108,1.98685,2647.8,2647.7,0.75518]
[1748457486406,1.2317,2647.8,2647.7,0.75518]
[1748457486906,1.98685,2647.8,2647.7,0.75518]
[1748457487406,0.75521,2647.6,2647.5,0.75522]
[1748457489906,1.2631,2647.6,2647.5,0.75522]
[1748457490406,2.01831,2647.6,2647.5,2.10202]
[1748457490905,1.2631,2647.6,2647.0,5.17085908]
[1748457491111,0.75529,2647.4,2647.3,0.75526]
[1748457491301,0.75529,2647.4,2647.3,18.12226]
[1748457491505,2.02179,2647.4,2647.3,18.12226]
[1748457491810,2.02179,2647.4,2647.3,18.12026]
[1748457493612,1.2665,2647.4,2647.3,18.12026]
[1748457493814,2.02176,2647.4,2647.3,18.12026]
[1748457495312,3.96299,2647.7,2647.6,0.75521]
[1748457495713,0.75521,2647.6,2647.5,1.40911]
[1748457495913,2.10371,2647.6,2647.5,1.40911]
[1748457498912,3.2078,2647.7,2647.5,1.40911]
[1748457499219,3.96288,2648.1,2648.0,0.75509]
[1748457499424,1.34114328,2648.2,2648.1,0.75506]
[1748457499724,0.00374328,2648.2,2648.1,0.75506]
[1748457499921,0.75877328,2648.2,2648.1,2.69156]
[1748457500227,0.00374328,2648.2,2648.1,2.69156]
[1748457504326,0.00374328,2648.2,2647.9,4.3585]
[1748457504626,5.09548,2648.1,2647.7,17.359]
[1748457504828,2.0048,2648.0,2647.9,0.75512]
[1748457505334,0.75512,2647.9,2647.8,2.06653]
[1748457505631,0.75518,2647.7,2647.6,0.75518]
[1748457505826,0.75521,2647.6,2647.5,4.55783908]
[1748457506028,1.2497,2647.6,2647.5,4.55783908]
[1748457506224,1.2497,2647.6,2647.5,5.86923908]
[1748457506831,1.2497,2647.6,2647.5,2.14123908]
[1748457507829,3.86604328,2648.2,2647.5,3.27411908]
[1748457508028,0.75511,2648.0,2647.9,0.7551]
[1748457508534,2.05121,2648.0,2647.9,0.7551]
[1748457509031,1.2961,2648.0,2647.9,0.7551]
[1748457509736,2.05119,2648.0,2647.9,0.7551]
[1748457509930,3.86604328,2648.2,2648.1,0.75506]
[1748457510135,3.21154328,2648.2,2648.1,18.12206]
[1748457510536,3.21154328,2648.2,2648.1,19.45756]
[1748457510938,0.00374328,2648.2,2648.1,19.45756]
[1748457512039,0.00374328,2648.2,2648.1,18.13206]
[1748457512343,1.30524328,2648.2,2648.1,18.13206]
[1748457512637,1.30524328,2648.2,2648.1,0.75506]
[1748457512833,1.30524328,2648.2,2648.1,2.08946]
[1748457515535,1.30524328,2648.2,2648.1,2.16409908]
[1748457520446,0.00374328,2648.2,2648.1,2.16409908]
[1748457520644,0.00374328,2648.2,2648.1,0.82969908]
[1748457520844,1.90734328,2648.2,2648.1,0.82969908]
[1748457521244,1.90734328,2648.2,2648.1,2.18109908]
[1748457523451,2.66237328,2648.2,2648.1,0.07463908]
[1748457523642,0.7552,2647.7,2647.4,5.61516]
[1748457523844,1.88778,2648.0,2647.5,0.75523]
[1748457523845,2.626,2647.6,2647.5,0.75523]
[1748457524848,2.626,2647.6,2647.5,2.63903]
[1748457525549,2.626,2647.6,2647.5,1.38653]
[1748457525851,2.626,2647.6,2647.5,0.75523]
[1748457529656,2.626,2647.6,2647.5,0.82986908]
[1748457531656,3.38121,2647.6,2647.5,0.82986908]
[1748457531856,2.626,2647.6,2647.5,18.17586908]
[1748457532458,3.2078,2647.7,2647.6,0.75521]
[1748457533852,4.5339,2647.7,2647.6,0.75521]
[1748457535260,1.3261,2647.7,2647.6,0.75521]
[1748457535762,2.08128,2647.7,2647.6,0.75521]
[1748457536264,1.3261,2647.7,2647.6,0.75521]
[1748457540060,3.96293,2647.9,2647.5,19.30868908]
[1748457540259,1.294,2647.8,2647.5,20.56508908]
[1748457540453,1.294,2647.8,2647.7,0.75518]
[1748457540958,2.04915,2647.8,2647.7,0.75518]
[1748457541158,1.294,2647.8,2647.7,0.75518]
[1748457542153,4.4635,2647.9,2647.8,0.75515]
[1748457542559,5.7575,2647.9,2647.8,0.75515]
[1748457542861,6.51262,2647.9,2647.8,0.75515]
[1748457543362,0.75521,2647.7,2647.6,0.75519]
[1748457543768,2.05371,2647.7,2647.6,0.75519]
[1748457544366,1.2985,2647.7,2647.6,0.75519]
[1748457544664,1.2985,2647.7,2647.6,2.07899]
[1748457545762,1.2985,2647.7,2647.6,0.75519]
[1748457547065,2.05368,2647.7,2647.6,0.75519]
[1748457547473,1.2985,2647.7,2647.6,0.75519]
[1748457547866,1.2985,2647.7,2647.6,2.76559]
[1748457548664,3.2078,2647.9,2647.8,0.75515]
[1748457548857,0.00374328,2648.2,2647.9,1.88777]
[1748457549060,0.00374328,2648.2,2648.0,1.9644]
[1748457549267,0.00374328,2648.2,2648.1,0.6718]
[1748457549768,0.00374328,2648.2,2648.1,1.42686]
[1748457552878,1.31194328,2648.2,2648.0,5.6984]
[1748457553083,1.31194328,2648.2,2648.1,18.09206]
[1748457553276,2.06700328,2648.2,2648.1,18.09206]
[1748457553582,1.31194328,2648.2,2648.1,18.09206]
[1748457554881,0.00374328,2648.2,2648.1,18.09206]
[1748457558579,1.25264328,2648.2,2648.1,18.09206]
[1748457560191,1.25264328,2648.2,2648.1,18.16669908]
[1748457565490,1.25264328,2648.2,2648.1,19.46099908]
[1748457572490,2.00767328,2648.2,2648.1,0.07463908]
[1748457572699,1.88769,2648.1,2647.8,0.75512]
[1748457572891,3.2078,2647.9,2647.8,0.75512]
[1748457573596,4.5167,2647.9,2647.8,0.75512]
[1748457573790,5.27186,2647.9,2647.8,0.75512]
[1748457574096,5.27186,2647.9,2647.7,17.335]
[1748457574097,0.75521,2647.7,2647.6,18.09016]
[1748457574402,1.99258,2647.8,2647.7,0.75518]
[1748457578303,0.75521,2647.7,2647.6,0.75518]
[1748457578602,2.03611,2647.7,2647.6,0.75518]
[1748457579902,1.2809,2647.7,2647.6,0.75518]
[1748457580099,4.5167,2647.9,2647.8,0.75515]
[1748457580507,5.7467,2647.9,2647.8,0.75515]
[1748457581303,1.23,2647.9,2647.8,0.75515]
[1748457581602,0.6447,2648.1,2648.0,0.75509]
[1748457581800,1.8747,2648.1,2648.0,0.75509]
[1748457582001,3.83314328,2648.2,2648.1,0.75506]
[1748457582002,0.00374328,2648.2,2648.1,0.75506]
[1748457582601,0.00374328,2648.2,2648.1,2.80139908]
[1748457582807,0.00374328,2648.2,2648.1,23.85639908]
[1748457585109,0.00374328,2648.2,2648.1,23.85539908]
[1748457590609,0.00374328,2648.2,2648.1,23.85439908]
[1748457590809,1.91944328,2648.2,2648.1,23.85439908]
[1748457592705,1.91944328,2648.2,2648.1,23.85339908]
[1748457597613,1.91944328,2648.2,2648.1,6.52039908]
[1748457597813,1.91944328,2648.2,2648.1,23.85239908]
[1748457599212,2.67447328,2648.2,2648.1,0.82969908]
[1748457599706,2.67447328,2648.2,2648.1,18.16169908]
[1748457601013,2.67447328,2648.2,2648.1,0.82969908]
[1748457601211,1.91944328,2648.2,2648.1,18.16169908]
[1748457601817,2.67447328,2648.2,2648.1,18.16169908]
[1748457602012,1.91944328,2648.2,2648.1,18.16169908]
[1748457602207,2.67447328,2648.2,2648.1,18.16169908]
[1748457602614,1.91944328,2648.2,2648.1,18.16169908]
[1748457603016,0.00374328,2648.2,2648.1,18.16169908]
[1748457603919,3.28e-06,2648.2,2648.1,23.16169908]
[1748457604120,3.28e-06,2648.2,2648.1,23.53949908]
[1748457604310,3.28e-06,2648.2,2648.1,24.77089908]
[1748457604511,3.28e-06,2648.2,2648.1,19.77089908]
[1748457606410,3.28e-06,2648.2,2648.1,24.77089908]
[1748457609016,3.28e-06,2648.2,2648.1,2.06109908]
[1748457609213,3.28e-06,2648.2,2648.1,23.10809908]
[1748457610428,3.28e-06,2648.2,2648.1,5.77809908]
[1748457610615,3.28e-06,2648.2,2648.1,2.06109908]
[1748457610816,0.75503328,2648.2,2648.1,0.07463908]
[1748457611020,3.28e-06,2648.2,2648.1,18.15869908]
[1748457612125,3.28e-06,2648.2,2648.1,19.46749908]
[1748457615931,3.28e-06,2648.2,2648.1,18.15869908]
[1748457617725,3.28e-06,2648.2,2648.1,0.82969908]
[1748457617922,3.28e-06,2648.2,2648.1,18.15869908]
[1748457618628,3.28e-06,2648.2,2648.1,0.82969908]
[1748457618821,3.28e-06,2648.2,2648.1,18.15869908]
[1748457619020,1.34480328,2648.2,2648.1,18.15869908]
[1748457620821,1.34480328,2648.2,2648.1,0.82969908]
[1748457621126,1.34480328,2648.2,2648.1,18.15869908]
[1748457623928,1.34480328,2648.2,2648.1,20.09179908]
[1748457625035,2.09983328,2648.2,2648.1,0.07463908]
[1748457625324,7.09983328,2648.2,2648.1,0.07463908]
[1748457625529,0.75523,2647.6,2647.5,0.7552]
[1748457625729,0.7552,2647.7,2647.6,0.75518]
[1748457626131,2.0625,2647.7,2647.6,0.75518]
[1748457626327,0.75525,2647.5,2647.4,0.75522]
[1748457627029,0.75525,2647.5,2647.2,3.716]
[1748457627230,1.3073,2647.4,2647.3,18.08526]
[1748457628026,1.3073,2647.4,2647.3,0.75526]
[1748457628222,1.3073,2647.4,2647.3,18.08526]
[1748457634432,1.3073,2647.4,2647.3,18.15989908]
[1748457635429,1.3073,2647.4,2647.3,0.82989908]
[1748457635629,1.3073,2647.4,2647.3,18.16089908]
[1748457636535,1.3073,2647.4,2647.3,18.16189908]
[1748457637139,1.3073,2647.4,2647.3,0.82989908]
[1748457637339,2.06256,2647.4,2647.3,0.82989908]
[1748457638231,2.06256,2647.4,2647.3,0.07463908]
[1748457641642,2.67956,2647.4,2647.3,0.07463908]
[1748457642243,3.35076,2647.4,2647.3,0.07463908]
[1748457652863,3.35076,2647.4,2647.3,0.82992908]
[1748457653157,3.35076,2647.4,2647.3,0.07463908]
[1748457657262,3.35076,2647.4,2647.3,1.38883908]
[1748457657869,0.75526,2647.4,2647.3,1.38883908]
[1748457658370,2.08496,2647.4,2647.3,1.38883908]
[1748457658665,2.08496,2647.4,2647.3,2.01423908]
[1748457659165,0.75526,2647.4,2647.3,2.76952908]
[1748457660063,0.75526,2647.4,2647.3,2.01423908]
[1748457662064,1.97856,2647.4,2647.3,2.01423908]
[1748457662566,1.97856,2647.4,2647.3,2.76952908]
[1748457662865,1.97856,2647.4,2647.3,0.07463908]
[1748457663464,3.09309398,2647.4,2647.3,0.07463908]
[1748457663865,1.97856,2647.4,2647.3,0.07463908]
[1748457664173,3.09326508,2647.4,2647.3,0.07463908]
[1748457664469,3.09324846,2647.4,2647.3,0.07463908]
[1748457664670,0.75538,2647.0,2646.9,0.00566947]
[1748457664864,3.96318,2647.0,2646.9,0.00566947]
[1748457665469,5.23518,2647.0,2646.9,0.00566947]
[1748457666170,5.23518,2647.0,2646.9,2.09737947]
[1748457666668,3.96318,2647.0,2646.9,2.09737947]
[1748457666868,3.96318,2647.0,2646.9,1.34196947]
[1748457668265,1.88874,2646.6,2646.1,3.2078]
[1748457668474,0.75555,2646.4,2646.3,1.9547]
[1748457668667,0.75555,2646.4,2646.3,2.71028]
[1748457669172,0.75555,2646.4,2646.3,0.75558]
[1748457669365,0.75555,2646.4,2646.2,0.75559]
[1748457669366,0.75562,2646.3,2646.2,0.75559]
[1748457669672,4.60334,2646.5,2646.4,0.75555]
[1748457670373,3.8478,2646.5,2646.4,0.75555]
[1748457670566,3.2078,2646.5,2646.4,0.75555]
[1748457670763,0.00566947,2646.6,2646.5,0.75552]
[1748457670968,0.00566947,2646.6,2646.5,5.24802]
[1748457671264,7.67812,2647.2,2647.1,0.75535]
[1748457671464,8.03649827,2647.2,2647.1,0.75535]
[1748457671970,3.2078,2647.2,2647.1,0.75535]
[1748457673073,3.2078,2647.2,2647.1,2.10025]
[1748457673264,3.96312,2647.2,2647.0,2.00206]
[1748457673468,0.75535,2647.1,2647.0,2.00206]
[1748457673976,3.2078,2647.2,2646.7,17.329]
[1748457674179,1.3335,2647.0,2646.8,1.934]
[1748457674372,1.3335,2647.0,2646.9,1.325]
[1748457674877,2.08889,2647.0,2646.9,1.325]
[1748457675678,2.08889,2647.0,2646.9,2.08041]
[1748457678972,1.2809,2647.1,2647.0,0.75538]
[1748457679178,3.96313,2647.2,2647.0,1.3265]
[1748457679381,3.96313,2647.2,2647.1,0.75535]
[1748457680178,0.75538,2647.0,2646.9,0.07463908]
[1748457680976,2.03298,2647.0,2646.9,0.07463908]
[1748457681176,2.03298,2647.0,2646.9,0.83003908]
[1748457682773,2.03298,2647.0,2646.9,2.14543908]
[1748457688883,2.03298,2647.0,2646.9,0.83003908]
[1748457690384,3.27228,2647.0,2646.9,0.83003908]
[1748457692087,1.2393,2647.0,2646.9,0.83003908]
[1748457692279,0.1131,2647.1,2647.0,0.75538]
[1748457697387,0.86845,2647.1,2647.0,0.75538]
[1748457698987,0.86845,2647.1,2647.0,1.98358]
[1748457700288,0.1131,2647.1,2647.0,1.98358]
[1748457701683,0.86845,2647.1,2647.0,1.98358]
[1748457702185,0.1131,2647.1,2647.0,1.98358]
[1748457702389,0.1131,2647.1,2647.0,5.19138]
[1748457702594,3.2078,2647.7,2647.6,0.75521]
[1748457702794,1.98992,2647.9,2647.8,0.75515]
[1748457703088,1.98992,2647.9,2647.8,2.01885]
[1748457703784,1.2348,2647.9,2647.8,2.01885]
[1748457703989,3.2078,2648.0,2647.9,0.75512]
[1748457704183,3.2078,2648.0,2647.9,2.01882]
[1748457704885,3.96289,2648.0,2647.9,2.01882]
[1748457710496,3.96289,2648.0,2647.9,2.09345908]
[1748457711094,3.96289,2648.0,2647.9,0.82975908]
[1748457718794,3.2078,2648.0,2647.9,0.82975908]
[1748457719391,8.96289,2648.0,2647.9,0.07463908]
[1748457719696,8.96289,2648.0,2647.9,9.08e-06]
[1748457719897,10.29569,2648.0,2647.9,9.08e-06]
[1748457720102,51.09569,2648.0,2647.9,9.08e-06]
[1748457722396,52.21512514,2648.0,2647.9,9.08e-06]
[1748457725699,52.2096013,2648.0,2647.9,9.08e-06]
[1748457728698,6.4096013,2648.0,2647.9,9.08e-06]
[1748457729100,3.95672913,2648.0,2647.9,9.08e-06]
[1748457729701,3.95672913,2648.0,2647.9,2.67692908]
[1748457730699,3.20163913,2648.0,2647.9,2.67692908]
[1748457732209,3.95672913,2648.0,2647.9,2.67692908]
[1748457733209,3.20163913,2648.0,2647.9,2.67692908]
[1748457733907,3.95672913,2648.0,2647.9,2.67692908]
[1748457734109,3.20163913,2648.0,2647.9,2.67692908]
[1748457736711,3.95672913,2648.0,2647.9,2.67692908]
[1748457737812,3.20163913,2648.0,2647.9,2.67692908]
[1748457747326,3.95672913,2648.0,2647.9,19.98392908]
[1748457747618,8.95672913,2648.0,2647.9,9.08e-06]
[1748457747826,10.91642913,2648.0,2647.9,9.08e-06]
[1748457748026,12.03829615,2648.0,2647.9,9.08e-06]
[1748457748327,52.83829615,2648.0,2647.9,9.08e-06]
[1748457748521,9.61842913,2648.0,2647.9,9.08e-06]
[1748457750421,5.91642913,2648.0,2647.9,9.08e-06]
[1748457754430,5.16133913,2648.0,2647.9,0.75512908]
[1748457754634,0.1131,2648.1,2648.0,0.75509]
[1748457754827,3.2078,2648.6,2648.5,0.75495]
[1748457755129,3.96272,2648.6,2648.5,0.75495]
[1748457756829,3.2078,2648.6,2648.2,21.14078]
[1748457757028,0.6424,2648.5,2648.4,0.75498]
[1748457757429,1.2884,2648.5,2648.4,0.75498]
[1748457758027,2.04335,2648.5,2648.4,0.75498]